bitfinex/quotes_SOLUSD_20250316
["timestamp","ask_amount","ask_price","bid_price","bid_amount"]
[1742161347817,12.31686375,127.18,127.17,0.03]
[1742161356014,18.60706375,127.18,127.17,0.03]
[1742161357019,11.72160098,127.18,127.13,91.62571537]
[1742161357610,17.62571537,127.17,127.11,10.85571537]
[1742161358528,12.3432228,127.15,127.11,10.85571537]
[1742161359129,12.48221537,127.14,127.11,0.03]
[1742161359425,6.8,127.13,127.11,0.03]
[1742161359629,6.8,127.13,127.11,10.85571537]
[1742161360017,12.3432228,127.12,127.11,10.85571537]
[1742161361635,12.3432228,127.15,127.11,17.14941537]
[1742161361819,12.3432228,127.15,127.12,10.82571537]
[1742161363150,12.3432228,127.16,127.12,10.82571537]
[1742161364036,12.3432228,127.16,127.12,17.11861537]
[1742161364634,82.6564032,127.17,127.12,17.11861537]
[1742161365835,82.6564032,127.17,127.11,10.85571537]
[1742161368035,82.6564032,127.17,127.11,329.14891537]
[1742161368426,33.4186228,127.17,127.11,329.14891537]
[1742161368626,44.24433817,127.17,127.11,329.14891537]
[1742161370647,44.24433817,127.17,127.11,318.3232]
[1742161370850,44.24433817,127.17,127.11,329.14891537]
[1742161371722,25.4341228,127.17,127.12,10.82571537]
[1742161372022,25.4341228,127.17,127.12,17.11881537]
[1742161372946,12.3432228,127.17,127.14,10.82571537]
[1742161373832,12.3432228,127.17,127.14,17.11781537]
[1742161374462,18.6333228,127.19,127.14,17.11781537]
[1742161374929,18.6333228,127.19,127.14,329.11781537]
[1742161375640,6.2901,127.19,127.14,329.11781537]
[1742161376550,54.20768378,127.2,127.14,329.11781537]
[1742161376850,37.09266841,127.2,127.16,10.82571537]
[1742161377026,12.4062228,127.2,127.16,10.82571537]
[1742161377735,12.4062228,127.2,127.17,10.82571537]
[1742161378050,12.4062228,127.2,127.18,10.82571537]
[1742161378431,12.4062228,127.2,127.17,10.82571537]
[1742161378817,12.4062228,127.2,127.18,10.82571537]
[1742161379024,12.4062228,127.2,127.19,10.82571537]
[1742161380749,12.4062228,127.2,127.19,322.82571537]
[1742161381133,0.063,127.2,127.19,322.82571537]
[1742161385147,0.063,127.2,127.19,410.19983851]
[1742161385354,0.063,127.2,127.19,428.84948737]
[1742161387352,0.063,127.2,127.19,116.84948737]
[1742161390355,0.063,127.2,127.19,432.85153525]
[1742161396155,0.063,127.2,127.19,433.35153525]
[1742161397068,0.063,127.2,127.19,432.85153525]
[1742161397361,0.063,127.2,127.19,433.35153525]
[1742161397960,6.863,127.2,127.19,0.5]
[1742161398139,6.863,127.2,127.16,0.03]
[1742161398338,0.063,127.2,127.17,10.82571537]
[1742161398539,0.063,127.2,127.19,11.11003851]
[1742161398757,0.063,127.2,127.19,29.75968737]
[1742161399839,0.063,127.2,127.19,36.04948737]
[1742161400065,0.063,127.2,127.19,42.48498737]
[1742161401049,0.063,127.2,127.19,354.48498737]
[1742161402860,0.063,127.2,127.19,435.28498737]
[1742161412773,0.063,127.2,127.19,478.58784885]
[1742161412975,0.063,127.2,127.19,435.28498737]
[1742161413352,0.063,127.2,127.19,441.57509761]
[1742161417278,0.063,127.2,127.19,484.87795909]
[1742161419467,0.063,127.2,127.19,441.57509761]
[1742161427790,0.063,127.2,127.19,435.28498737]
[1742161430687,0.063,127.2,127.19,428.84948737]
[1742161440395,0.063,127.2,127.19,318.57412314]
[1742161440586,0.063,127.2,127.19,428.84948737]
[1742161440785,0.063,127.2,127.19,410.19983851]
[1742161440981,0.063,127.21,127.2,18.933972]
[1742161441296,0.063,127.22,127.2,110.55968737]
[1742161441508,0.063,127.22,127.21,29.47536423]
[1742161442486,0.063,127.22,127.21,11.11003851]
[1742161442795,0.063,127.22,127.21,10.82571537]
[1742161442979,0.063,127.22,127.21,17.39883851]
[1742161444298,0.063,127.22,127.21,348.04848737]
[1742161447309,0.0001,127.23,127.22,29.75968737]
[1742161447508,12.3432228,127.26,127.25,20.28432314]
[1742161447689,12.3432228,127.26,127.25,31.11003851]
[1742161449294,12.3432228,127.26,127.25,56.04648737]
[1742161450686,12.3432228,127.26,127.25,368.04648737]
[1742161451188,0.063,127.28,127.26,0.28432314]
[1742161452709,0.063,127.28,127.27,6.2858]
[1742161453507,0.063,127.28,127.27,6.57012314]
[1742161454187,0.063,127.28,127.27,17.39583851]
[1742161454387,0.063,127.28,127.27,329.39583851]
[1742161454589,0.063,127.28,127.27,318.57012314]
[1742161456896,0.063,127.28,127.27,329.39583851]
[1742161458009,0.063,127.28,127.27,318.57012314]
[1742161461211,0.063,127.28,127.27,329.39583851]
[1742161461516,0.063,127.28,127.27,17.39583851]
[1742161462417,0.063,127.28,127.27,6.57012314]
[1742161462811,0.063,127.28,127.27,17.39583851]
[1742161463615,0.063,127.31,127.28,0.28432314]
[1742161463815,0.063,127.31,127.3,11.11003851]
[1742161464017,0.063,127.31,127.3,29.75968737]
[1742161464518,0.063,127.31,127.3,341.75968737]
[1742161465317,0.063,127.32,127.31,18.64964886]
[1742161465619,0.063,127.32,127.31,110.27536423]
[1742161465813,0.063,127.32,127.31,116.55916423]
[1742161467322,0.063,127.32,127.31,116.84348737]
[1742161468417,0.063,127.32,127.31,428.84348737]
[1742161469815,0.063,127.32,127.31,116.84348737]
[1742161472920,0.063,127.32,127.31,428.84348737]
[1742161473305,0.063,127.32,127.31,429.34348737]
[1742161473507,0.063,127.32,127.31,428.84348737]
[1742161473723,0.063,127.32,127.31,432.84104814]
[1742161474020,0.063,127.33,127.32,19.433972]
[1742161474226,0.063,127.33,127.32,80.52329917]
[1742161474723,0.063,127.33,127.32,79.34584885]
[1742161474924,0.063,127.33,127.32,80.52330756]
[1742161475126,0.063,127.33,127.32,160.14584885]
[1742161476128,0.063,127.39,127.37,6.56502314]
[1742161476426,0.063,127.39,127.38,10.82571537]
[1742161476627,0.063,127.39,127.37,98.04857694]
[1742161476829,0.063,127.39,127.38,11.11003851]
[1742161477020,0.063,127.39,127.38,10.82571537]
[1742161477324,0.063,127.39,127.38,312.0]
[1742161481127,0.063,127.39,127.37,87.22286157]
[1742161481306,0.063,127.39,127.37,98.04857694]
[1742161481729,0.063,127.39,127.37,87.22286157]
[1742161481917,0.063,127.39,127.37,98.04857694]
[1742161484125,0.063,127.39,127.37,410.04857694]
[1742161485531,0.063,127.39,127.37,80.8]
[1742161486430,0.063,127.39,127.37,87.0806]
[1742161486640,0.063,127.39,127.37,97.90631537]
[1742161488636,0.063,127.39,127.37,409.90631537]
[1742161489822,5.7686,127.42,127.37,409.90631537]
[1742161490119,5.7686,127.42,127.37,97.90631537]
[1742161492941,5.7686,127.42,127.37,409.90631537]
[1742161497122,1.6546,127.43,127.38,17.10611537]
[1742161498136,0.03,127.42,127.38,17.10611537]
[1742161499728,0.03,127.42,127.39,10.82571537]
[1742161500439,0.03,127.42,127.38,17.10611537]
[1742161503043,0.03,127.42,127.38,329.10611537]
[1742161503247,0.03,127.42,127.38,17.10611537]
[1742161504139,0.03,127.42,127.39,10.82571537]
[1742161504741,0.03,127.42,127.38,17.10611537]
[1742161505240,0.03,127.42,127.38,6.2804]
[1742161506245,0.03,127.42,127.38,318.2804]
[1742161506845,0.03,127.42,127.38,329.10611537]
[1742161509143,0.03,127.42,127.38,17.10611537]
[1742161509535,0.03,127.42,127.38,6.3434]
[1742161511659,0.03,127.42,127.38,17.16911537]
[1742161512257,0.03,127.42,127.38,329.16911537]
[1742161515750,0.03,127.42,127.38,17.16911537]
[1742161516247,0.03,127.42,127.38,6.3434]
[1742161516632,0.03,127.42,127.38,17.16911537]
[1742161518833,0.03,127.42,127.38,329.16911537]
[1742161521754,0.03,127.42,127.38,17.16911537]
[1742161524643,0.03,127.42,127.38,6.3434]
[1742161524843,0.03,127.42,127.38,318.3434]
[1742161526852,12.3732228,127.42,127.38,318.3434]
[1742161527849,12.3732228,127.42,127.38,6.3434]
[1742161529857,12.3432228,127.41,127.38,6.3434]
[1742161530741,12.3432228,127.41,127.38,318.3434]
[1742161530939,37.05966841,127.42,127.38,318.3434]
[1742161531142,37.05966841,127.42,127.38,6.3434]
[1742161532367,10.82571537,127.39,127.38,0.063]
[1742161533665,29.47536423,127.4,127.38,0.063]
[1742161533968,24.68644561,127.39,127.38,0.063]
[1742161536773,35.51216098,127.39,127.38,0.063]
[1742161537450,41.79206098,127.39,127.38,0.063]
[1742161539056,17.10561537,127.39,127.38,0.063]
[1742161541771,6.2799,127.39,127.38,0.063]
[1742161541964,17.10561537,127.39,127.38,0.063]
[1742161543255,41.78935983,127.39,127.38,0.063]
[1742161543849,60.72333183,127.39,127.38,0.063]
[1742161546869,18.64964886,127.38,127.36,0.063]
[1742161547061,17.60571537,127.37,127.36,0.063]
[1742161547949,23.88661537,127.37,127.36,0.063]
[1742161549571,42.53626423,127.37,127.36,0.063]
[1742161550074,44.03846423,127.37,127.36,0.063]
[1742161551884,56.36133739,127.37,127.36,0.063]
[1742161553275,44.03846423,127.37,127.36,0.063]
[1742161558878,44.32278737,127.37,127.36,0.063]
[1742161564876,42.53626423,127.37,127.36,0.063]
[1742161565580,35.75626423,127.37,127.36,0.063]
[1742161572380,35.75626423,127.37,127.36,0.063]
[1742161579091,48.07913739,127.37,127.36,0.063]
[1742161581187,60.44000869,127.37,127.3,17.10981537]
[1742161581392,17.10751537,127.36,127.3,17.10981537]
[1742161582390,17.10751537,127.36,127.3,329.10981537]
[1742161583599,12.35170575,127.35,127.3,329.10981537]
[1742161585297,12.35170575,127.34,127.3,17.10981537]
[1742161588300,12.35170575,127.34,127.3,329.10981537]
[1742161589002,12.35170575,127.34,127.3,17.10981537]
[1742161589184,12.35170575,127.34,127.3,6.2841]
[1742161590006,12.35170575,127.34,127.3,17.10981537]
[1742161591406,6.2814,127.36,127.3,17.10981537]
[1742161599312,6.2814,127.36,127.29,6.2848]
[1742161601516,6.2814,127.36,127.29,318.2848]
[1742161603917,6.2814,127.36,127.29,318.3478]
[1742161606115,6.2814,127.36,127.29,6.3478]
[1742161609116,6.2814,127.36,127.29,318.3478]
[1742161610203,6.2814,127.36,127.29,6.3478]
[1742161610421,17.10711537,127.36,127.29,6.3478]
[1742161611522,17.10711537,127.36,127.29,17.17351537]
[1742161613199,17.10711537,127.36,127.29,329.17351537]
[1742161615817,17.13711537,127.36,127.29,318.3478]
[1742161616134,17.13711537,127.36,127.29,329.17351537]
[1742161616311,17.13711537,127.36,127.29,17.17351537]
[1742161619336,17.13711537,127.36,127.29,329.17351537]
[1742161620334,17.13711537,127.36,127.3,7.9012]
[1742161623248,6.3114,127.36,127.3,7.9012]
[1742161626142,6.3114,127.36,127.3,319.9012]
[1742161626428,6.3114,127.36,127.3,7.9012]
[1742161627726,6.3114,127.36,127.31,6.0271]
[1742161628521,6.3114,127.36,127.31,12.3106]
[1742161629321,6.3114,127.36,127.31,324.3106]
[1742161629521,6.3114,127.36,127.31,12.3106]
[1742161630324,6.3114,127.36,127.31,6.0271]
[1742161647456,17.13711537,127.36,127.31,6.0271]
[1742161647935,6.3114,127.36,127.31,6.0271]
[1742161648445,6.3114,127.36,127.31,12.3108]
[1742161651758,0.03,127.36,127.32,1.85512314]
[1742161651963,0.03,127.36,127.33,17.47441537]
[1742161652266,0.03,127.36,127.34,10.82571537]
[1742161652465,0.03,127.36,127.33,17.47441537]
[1742161653746,0.03,127.36,127.34,6.2823]
[1742161657054,0.03,127.36,127.34,17.10801537]
[1742161657661,0.03,127.36,127.35,10.82571537]
[1742161658360,0.03,127.36,127.34,17.10801537]
[1742161658667,0.03,127.36,127.35,19.32953851]
[1742161658966,0.03,127.36,127.35,100.12953851]
[1742161659475,0.03,127.36,127.35,106.41143851]
[1742161660780,0.03,127.38,127.35,106.41143851]
[1742161660959,0.03,127.38,127.37,10.82571537]
[1742161661670,0.03,127.38,127.37,17.10661537]
[1742161662289,0.03,127.38,127.37,6.2809]
[1742161668174,0.03,127.38,127.35,99.84521537]
[1742161668567,0.03,127.38,127.35,106.12691537]
[1742161671184,0.03,127.38,127.35,418.12691537]
[1742161672375,0.03,127.38,127.35,106.12691537]
[1742161675995,0.03,127.38,127.35,106.18991537]
[1742161676490,0.03,127.38,127.36,17.10701537]
[1742161679093,0.03,127.38,127.36,329.10701537]
[1742161680699,10.82571537,127.37,127.35,0.063]
[1742161680870,18.933972,127.36,127.35,0.063]
[1742161681067,44.36658737,127.36,127.35,0.063]
[1742161681487,44.36658737,127.36,127.31,0.063]
[1742161681690,10.82571537,127.33,127.31,0.063]
[1742161681891,6.78,127.32,127.31,0.063]
[1742161682277,17.60571537,127.32,127.31,0.063]
[1742161682793,23.88901537,127.32,127.31,0.063]
[1742161687392,13.0633,127.32,127.31,0.063]
[1742161688398,23.88901537,127.32,127.31,0.063]
[1742161691503,13.0633,127.32,127.31,0.063]
[1742161695600,86.12584885,127.32,127.31,0.063]
[1742161695802,86.12584885,127.32,127.3,0.063]
[1742161695803,20.16904886,127.31,127.3,0.063]
[1742161695999,20.16904886,127.31,127.23,0.03]
[1742161696000,1.80372314,127.25,127.23,0.03]
[1742161696205,36.25536423,127.24,127.23,0.03]
[1742161696505,36.53968737,127.24,127.23,0.03]
[1742161697504,42.82698737,127.24,127.23,0.03]
[1742161699910,36.04698737,127.24,127.23,0.03]
[1742161700209,42.82698737,127.24,127.23,0.03]
[1742161703106,18.64964886,127.23,127.22,0.063]
[1742161703320,29.47536423,127.23,127.22,0.063]
[1742161703702,35.76316423,127.23,127.22,0.063]
[1742161711122,29.75968737,127.12,127.11,0.03]
[1742161711317,29.47536423,127.12,127.11,0.03]
[1742161712299,35.76856423,127.12,127.11,0.03]
[1742161713121,10.82571537,127.12,127.11,0.03]
[1742161713314,17.11861537,127.13,127.11,0.03]
[1742161713513,10.82571537,127.12,127.11,0.03]
[1742161717324,17.11891537,127.12,127.11,0.03]
[1742161721425,35.76856423,127.12,127.11,0.03]
[1742161723315,35.76856423,127.12,127.06,0.13]
[1742161723316,20.14216157,127.04,127.03,2.7993629]
[1742161723514,0.14216157,127.02,126.97,8.1434]
[1742161723729,10.82571537,127.0,126.97,8.1434]
[1742161724038,6.92,126.99,126.97,8.1434]
[1742161729246,16.9667271,127.01,126.97,8.1434]
[1742161729425,23.8867271,127.01,126.97,8.1434]
[1742161729627,23.8867271,127.01,126.97,1.214113]
[1742161730452,16.9667271,127.0,126.97,1.214113]
[1742161730746,16.9667271,126.99,126.94,87.102]
[1742161730952,16.9667271,126.99,126.94,6.302]
[1742161731148,16.9667271,126.95,126.88,6.3051]
[1742161731334,16.9667271,126.93,126.88,23.2718271]
[1742161731538,23.9467271,126.93,126.88,23.2718271]
[1742161731735,23.9467271,126.93,126.87,104.0723271]
[1742161731923,23.9467271,126.93,126.87,87.1056]
[1742161732249,6.98,126.93,126.88,16.9667271]
[1742161733655,6.98,126.93,126.89,6.3046]
[1742161733952,16.9667271,126.92,126.89,6.3046]
[1742161734261,23.9467271,126.93,126.88,6.305]
[1742161735119,16.9667271,126.92,126.88,6.305]
[1742161735530,6.98,126.93,126.89,0.03]
[1742161735732,23.9467271,126.93,126.89,0.03]
[1742161737437,30.2495271,126.93,126.89,0.03]
[1742161737640,16.9667271,126.92,126.89,0.03]
[1742161737937,35.75853753,126.92,126.89,0.03]
[1742161738339,17.25105024,126.9,126.89,0.03]
[1742161738642,52.8674262,126.9,126.89,0.03]
[1742161739028,0.14216157,126.86,126.8,1.5076]
[1742161739231,24.0067271,126.85,126.8,1.5076]
[1742161739628,24.0067271,126.85,126.8,18.4743271]
[1742161740142,7.04,126.85,126.8,7.8165]
[1742161740444,30.3137271,126.85,126.8,1.5076]
[1742161740651,30.3137271,126.85,126.79,23.1393271]
[1742161741041,16.9667271,126.82,126.78,2.7993629]
[1742161741242,7.06,126.81,126.78,2.7993629]
[1742161742235,7.06,126.81,126.78,19.76609]
[1742161742840,7.06,126.81,126.78,2.7993629]
[1742161743240,7.06,126.81,126.78,19.76609]
[1742161743446,7.06,126.81,126.78,2.7993629]
[1742161743734,16.9667271,126.8,126.78,2.7993629]
[1742161744141,30.3357271,126.81,126.78,2.7993629]
[1742161744884,13.369,126.81,126.78,2.7993629]
[1742161746136,30.3357271,126.81,126.78,2.7993629]
[1742161748337,30.3357271,126.81,126.78,2.8293629]
[1742161750459,17.25105024,126.79,126.78,2.8293629]
[1742161750634,0.14216157,126.77,126.75,0.3]
[1742161750843,42.87853753,126.76,126.75,0.3]
[1742161751134,24.0867271,126.76,126.75,0.3]
[1742161751346,7.12,126.76,126.75,0.3]
[1742161751753,6.6306,126.79,126.75,0.3]
[1742161751754,16.9667271,126.79,126.75,0.3]
[1742161752054,20.0,126.73,126.66,6.4286]
[1742161752237,16.9667271,126.71,126.65,16.9967271]
[1742161752431,7.2,126.7,126.66,16.9667271]
[1742161752635,7.2,126.73,126.66,0.14216157]
[1742161753059,7.2,126.73,126.67,16.9667271]
[1742161753556,24.1667271,126.73,126.67,328.9667271]
[1742161754457,7.2,126.73,126.67,328.9667271]
[1742161754757,7.2,126.73,126.67,416.0823271]
[1742161755357,13.5126,126.73,126.67,416.0823271]
[1742161755572,16.9667271,126.72,126.67,80.8]
[1742161756057,16.9667271,126.71,126.65,0.03]
[1742161756443,16.9667271,126.71,126.65,6.3465]
[1742161756651,29.2941,126.73,126.65,6.3465]
[1742161756960,13.5126,126.73,126.67,16.9667271]
[1742161757264,7.2,126.73,126.67,16.9667271]
[1742161757443,30.4795271,126.73,126.67,23.2820271]
[1742161757643,30.4795271,126.73,126.66,23.2826271]
[1742161757962,16.9667271,126.72,126.66,23.2826271]
[1742161758355,30.4795271,126.73,126.66,23.2826271]
[1742161758556,24.1667271,126.73,126.66,335.2826271]
[1742161759563,16.9667271,126.72,126.66,318.3159]
[1742161759943,13.5127,126.73,126.66,318.3159]
[1742161759944,7.2,126.73,126.66,318.3159]
[1742161760144,24.1667271,126.73,126.66,335.2826271]
[1742161760740,7.2,126.73,126.66,416.0826271]
[1742161761162,7.2,126.73,126.67,16.9667271]
[1742161761361,16.9667271,126.74,126.67,80.8]
[1742161761575,16.9667271,126.73,126.67,87.1153]
[1742161761748,16.9667271,126.73,126.65,24.1967271]
[1742161761749,16.9667271,126.72,126.66,6.3159]
[1742161761953,24.1667271,126.72,126.65,87.1464]
[1742161762568,7.2,126.72,126.66,16.9667271]
[1742161763365,24.1667271,126.72,126.65,104.1131271]
[1742161763868,30.4800271,126.72,126.65,104.1131271]
[1742161764167,30.4800271,126.72,126.65,416.1131271]
[1742161764371,13.5133,126.72,126.65,416.1131271]
[1742161767166,16.9667271,126.69,126.65,0.03]
[1742161767395,16.9667271,126.66,126.65,0.03]
[1742161767571,24.1667271,126.66,126.65,0.03]
[1742161767774,60.0674262,126.66,126.65,0.03]
[1742161767945,60.0674262,126.66,126.56,24.9329271]
[1742161767946,0.14216157,126.65,126.56,24.9329271]
[1742161768142,16.9667271,126.6,126.53,2.7993629]
[1742161768349,24.2067271,126.59,126.53,2.7993629]
[1742161768644,7.24,126.59,126.53,19.76609]
[1742161768971,7.24,126.59,126.54,16.9667271]
[1742161769167,13.5598,126.59,126.54,16.9667271]
[1742161769352,30.5265271,126.59,126.53,19.76609]
[1742161769669,13.5598,126.59,126.53,19.76609]
[1742161769843,30.5265271,126.59,126.53,19.76609]
[1742161770473,16.9667271,126.55,126.53,2.7993629]
[1742161770679,24.2267271,126.54,126.53,2.7993629]
[1742161770973,7.26,126.54,126.53,2.7993629]
[1742161771146,7.28,126.57,126.53,2.7993629]
[1742161771347,7.28,126.57,126.53,19.76609]
[1742161771576,16.9667271,126.59,126.53,19.76609]
[1742161771978,16.9667271,126.59,126.53,26.08859]
[1742161772164,24.2467271,126.6,126.54,16.9667271]
[1742161773578,24.2467271,126.6,126.55,6.3216]
[1742161773765,24.2467271,126.6,126.53,331.76609]
[1742161774077,24.2467271,126.6,126.54,6.322]
[1742161777378,7.28,126.6,126.54,23.2887271]
[1742161779384,7.28,126.6,126.54,6.322]
[1742161779590,7.28,126.6,126.54,23.2887271]
[1742161780280,7.28,126.6,126.54,6.322]
[1742161781184,16.9667271,126.6,126.54,6.322]
[1742161781485,16.9667271,126.61,126.54,23.2887271]
[1742161782798,16.9667271,126.59,126.54,6.322]
[1742161783179,16.9667271,126.6,126.54,22.1272]
[1742161783382,16.9667271,126.61,126.54,39.0939271]
[1742161783679,7.24,126.62,126.54,39.0939271]
[1742161783680,23.2849271,126.62,126.54,39.0939271]
[1742161783986,16.9667271,126.63,126.57,16.9667271]
[1742161784171,16.9667271,126.64,126.58,16.9667271]
[1742161784365,35.61637596,126.65,126.58,16.9667271]
[1742161784568,16.9667271,126.64,126.58,16.9667271]
[1742161784777,1.68956157,126.68,126.58,16.9667271]
[1742161784778,6.461,126.7,126.6,16.9667271]
[1742161784978,16.9667271,126.67,126.61,16.9667271]
[1742161785187,16.9667271,126.66,126.62,6.3181]
[1742161786387,16.9667271,126.67,126.62,6.3181]
[1742161787183,18.64964886,126.68,126.61,23.2851271]
[1742161787385,16.9667271,126.7,126.64,16.9667271]
[1742161787766,16.9667271,126.71,126.65,16.9667271]
[1742161787981,7.32,126.72,126.65,16.9667271]
[1742161788190,16.9667271,126.7,126.64,16.9667271]
[1742161788495,7.32,126.72,126.62,89.6968]
[1742161788496,16.9667271,126.68,126.62,106.6635271]
[1742161788801,16.9667271,126.69,126.63,16.9667271]
[1742161789169,16.9667271,126.69,126.63,23.2841271]
[1742161789370,16.9667271,126.7,126.63,23.2841271]
[1742161789588,16.9667271,126.7,126.64,16.9667271]
[1742161789769,35.61637596,126.71,126.64,16.9667271]
[1742161789971,41.93017596,126.71,126.64,16.9667271]
[1742161790283,16.9667271,126.7,126.64,16.9667271]
[1742161791694,23.2808271,126.7,126.64,16.9667271]
[1742161792000,16.9667271,126.72,126.66,16.9667271]
[1742161792297,16.9667271,126.73,126.67,16.9667271]
[1742161793292,16.9667271,126.72,126.66,16.9667271]
[1742161793486,16.9667271,126.73,126.67,16.9667271]
[1742161794300,16.9667271,126.72,126.66,335.2828271]
[1742161795810,16.9667271,126.72,126.66,399.1161]
[1742161796100,16.9667271,126.72,126.66,416.0828271]
[1742161796999,23.2794271,126.73,126.67,16.9667271]
[1742161797303,23.2794271,126.73,126.67,23.3560271]
[1742161799481,22.7794271,126.73,126.67,23.3560271]
[1742161800702,16.9667271,126.72,126.67,23.3560271]
[1742161802001,6.3136,126.71,126.67,23.3560271]
[1742161803303,6.3131,126.72,126.67,6.3893]
[1742161803601,6.3131,126.72,126.67,104.1560271]
[1742161803802,6.3131,126.72,126.67,416.1560271]
[1742161804300,6.3131,126.72,126.67,104.1560271]
[1742161805591,16.9667271,126.73,126.67,104.1560271]
[1742161806605,6.3131,126.72,126.67,104.1560271]
[1742161806807,6.3131,126.72,126.67,104.1860271]
[1742161807105,6.3131,126.72,126.67,416.1860271]
[1742161810113,6.3131,126.72,126.67,104.1860271]
[1742161810290,16.9667271,126.7,126.67,0.03]
[1742161810615,24.1867271,126.7,126.67,0.03]
[1742161811311,18.13341789,126.7,126.67,0.03]
[1742161812110,7.22,126.7,126.67,0.03]
[1742161812437,6.3146,126.69,126.67,0.03]
[1742161816016,6.3136,126.71,126.67,0.03]
[1742161820810,6.3131,126.72,126.67,0.03]
[1742161822700,30.6050055,126.73,126.67,6.3456]
[1742161822898,13.5557,126.73,126.68,1.607]
[1742161825214,6.3757,126.73,126.68,1.607]
[1742161825415,6.3757,126.73,126.68,7.922]
[1742161825617,6.3757,126.73,126.68,24.9713055]
[1742161825916,23.4250055,126.73,126.68,7.922]
[1742161826817,0.063,126.73,126.68,7.922]
[1742161827019,17.1123055,126.73,126.68,7.922]
[1742161827623,17.1123055,126.73,126.68,319.922]
[1742161827799,17.1123055,126.73,126.68,7.922]
[1742161827998,17.0493055,126.72,126.68,7.922]
[1742161830734,17.0493055,126.71,126.68,1.607]
[1742161831524,17.0493055,126.72,126.68,1.607]
[1742161832526,17.0493055,126.72,126.68,7.922]
[1742161832926,23.4251055,126.73,126.68,7.922]
[1742161833123,17.28454635,126.73,126.68,7.922]
[1742161834323,17.28454635,126.73,126.68,14.0503]
[1742161834827,17.28454635,126.73,126.68,7.7353]
[1742161836707,0.063,126.73,126.68,7.7353]
[1742161836904,10.97174635,126.73,126.68,7.7353]
[1742161838127,6.3131,126.72,126.68,7.7353]
[1742161841931,6.3131,126.72,126.68,7.7653]
[1742161843121,0.063,126.73,126.68,7.7653]
[1742161846134,0.063,126.73,126.68,14.0804]
[1742161848639,0.063,126.73,126.72,10.90874635]
[1742161848838,0.063,126.73,126.72,91.70874635]
[1742161849220,0.063,126.73,126.72,93.32374635]
[1742161850542,0.063,126.73,126.72,99.63684635]
[1742161850950,0.063,126.73,126.72,411.63684635]
[1742161853923,0.063,126.73,126.72,99.63684635]
[1742161859826,0.0001,126.73,126.72,99.63684635]
[1742161863737,0.0001,126.73,126.72,411.63684635]
[1742161864150,0.0001,126.73,126.72,411.77900792]
[1742161877760,0.0001,126.73,126.72,411.80900792]
[1742161878551,0.063,126.75,126.74,10.90874635]
[1742161879864,0.063,126.75,126.74,17.22084635]
[1742161885269,0.063,126.75,126.74,6.3121]
[1742161886577,0.063,126.75,126.74,318.3121]
[1742161888776,0.063,126.75,126.74,6.3121]
[1742161889861,0.063,126.75,126.74,17.22084635]
[1742161890559,0.063,126.75,126.74,17.36300792]
[1742161891676,0.063,126.75,126.74,329.36300792]
[1742161894382,0.063,126.75,126.74,333.41004348]
[1742161895480,0.063,126.75,126.74,414.21004348]
[1742161898564,0.0001,126.75,126.74,433.00185391]
[1742161899785,0.0001,126.75,126.74,121.00185391]
[1742161902509,0.0001,126.75,126.74,433.00185391]
[1742161903170,0.0001,126.75,126.74,121.00185391]
[1742161903374,0.0001,126.75,126.74,91.30129713]
[1742161903573,0.0001,126.75,126.74,102.21004348]
[1742161906079,0.0001,126.75,126.74,414.21004348]
[1742161911173,0.0001,126.75,126.74,414.35220505]
[1742161913696,0.0001,126.75,126.74,102.35220505]
[1742161914099,0.0001,126.75,126.74,121.00185391]
[1742161914496,0.0001,126.75,126.74,121.03185391]
[1742161915377,0.0001,126.75,126.74,102.38220505]
[1742161916694,0.0001,126.75,126.74,414.38220505]
[1742161925707,0.0001,126.75,126.74,102.38220505]
[1742161928689,0.0001,126.75,126.74,414.38220505]
[1742161929405,0.0001,126.75,126.74,414.24004348]
[1742161931397,0.0001,126.75,126.74,102.38220505]